Cogmind - Beta 13 @@@ ROGUE MODE // 2024.03.24 @ 21:37:58 Player: f_ Result: Destroyed by 07-OUI(R) with Subdweller Laser Performance ------------- Evolutions (0) 0 Regions Visited (3) 600 Robots Destroyed (38) 190 Value Destroyed (704) 704 Prototype IDs (0) 0 Alien Tech Used (0) 0 Bonus (-14) -14 TOTAL SCORE: 1480 Bonus ------- Friendly Fire -14 Cogmind --------- Core Integrity 0/250 Matter 23/300 Energy 148/150 System Corruption 0% Temperature Cool (6) Movement Rolling (115) Ox1 Location -10/Subcaves Parts ------- > --- POWER (1) -------- Light Angular Momentum Engine > --- PROPULSION (2) --- Compact Wheel Compact Wheel > --- UTILITY (2) ------ High-capacity Storage Unit Makeshift Terrain Scanner > --- WEAPON (2) ------- Mini Grenade Launcher > --- INVENTORY (20) --- Ion Engine Light Ion Engine Makeshift Power Source Wheel Wheel Wheel Huge Storage Unit Hacking Suite Particle Gun Light Assault Rifle Light Assault Rifle Subdweller Machine Gun Battle Cannon Peak State ------------ > --- POWER ------------ Light Angular Momentum Engine > --- PROPULSION ------- Compact Wheel Compact Wheel > --- UTILITY ---------- High-capacity Storage Unit Makeshift Terrain Scanner > --- WEAPON ----------- Mini Grenade Launcher Mini Grenade Launcher > --- INVENTORY -------- Ion Engine Light Ion Engine Makeshift Power Source Wheel Wheel Huge Storage Unit Hacking Suite Particle Gun Light Assault Rifle Light Assault Rifle Subdweller Machine Gun Battle Cannon [Rating: 21] Favorites ----------- Power Light Angular Momentum Engine Engine Light Angular Momentum Engine Propulsion Compact Wheel Wheel Compact Wheel Utility High-capacity Storage Unit Device Makeshift Terrain Scanner Storage High-capacity Storage Unit Weapon Mini Grenade Launcher Ballistic Gun Assault Rifle Launcher Mini Grenade Launcher Build | -11 -10 -10 -10 ------- Run | Yrd Mat Min Sub Slots Evolved . | . . . . Power . | . . . . Propulsion . | . . . . Utility . | . . . . Weapon . | . . . . Parts Attached 19 | 4 8 6 1 Power 5 | . 4 1 . Engine 5 | . 4 1 . Core . | . . . . Reactor . | . . . . Propulsion 4 | 2 1 1 . Treads . | . . . . Leg . | . . . . Wheel 4 | 2 1 1 . Hover . | . . . . Flight . | . . . . Utility 3 | 1 1 . 1 Device 1 | . . . 1 Storage 2 | 1 1 . . Processor . | . . . . Hackware . | . . . . Protection . | . . . . Artifact . | . . . . Weapon 7 | 1 2 4 . Energy Gun . | . . . . Energy Cannon . | . . . . Ballistic Gun 4 | 1 1 2 . Ballistic Cannon . | . . . . Launcher 3 | . 1 2 . Special Weapon . | . . . . Impact Weapon . | . . . . Slashing Weapon . | . . . . Piercing Weapon . | . . . . Special Melee Weapon . | . . . . Unidentified Prototypes . | . . . . Parts Lost 4 | . . 3 1 Power . | . . . . Propulsion 1 | . . 1 . Utility . | . . . . Weapon 3 | . . 2 1 Highest Loss Streak 3 | . . 3 1 To Critical Strikes . | . . . . Average Slot Usage (%) 88 | . 85 82 94 Engine 14 | . 14 14 14 Wheel 27 | . 28 26 28 Device 3 | . . . 8 Storage 14 | . 14 14 14 Ballistic Gun 8 | . 16 11 . Launcher 19 | . 11 15 28 Naked Turns . | . . . . Heaviest Build 52 | 6 50 51 52 Greatest Support 32 | 32 32 32 32 Greatest Overweight (x) 2 | . 1 2 1 Average Overweight (x) . | . . 1 1 Largest Inventory Capacity 20 | 8 20 20 20 Average Capacity 17 | 7 14 20 20 Most Carried 13 | 7 7 9 13 Average Carried 8 | 4 6 7 10 Final Capacity 20 | 8 20 20 20 Final Carried 13 | 7 6 9 13 Class Distribution -------------------- 100% | Mutant Dominant Class ---------------- Mutant | -10/Materials Mutant | -10/Mines Mutant | -10/Subcaves Resources | -11 -10 -10 -10 ----------- Run | Yrd Mat Min Sub Matter Collected 797 | 246 326 107 118 Remotely . | . . . . Salvage Created 903 | 82 442 192 187 Parts 64 | 3 37 16 8 Haulers Intercepted . | . . . . Recyclers Shooed 1 | . . 1 . Parts Field Recycled . | . . . . Retrieved Matter . | . . . . Parts Self-Destructed . | . . . . Prevented . | . . . . Kills | -11 -10 -10 -10 ------- Run | Yrd Mat Min Sub Combat Hostiles Destroyed 21 | . 9 5 7 Guns 5 | . 3 2 . AOE 16 | . 6 3 7 Classes Destroyed 10 | 1 6 1 2 Worker 4 | . 3 1 . Builder 3 | . 3 . . Tunneler 2 | . . 2 . Recycler 5 | 1 3 1 . Operator 1 | . 1 . . Watcher 2 | . 2 . . Swarmer 9 | . 6 3 . Grunt 5 | . 3 2 . Artisan 1 | . . . 1 Subdweller 7 | . . . 7 Best Kill Streak 12 | 1 12 4 3 Combat Bots Only 5 | . 5 3 3 Max Kills in Single Turn 3 | 1 3 3 1 Gunslinging . | . . . . Exploded 3 | . 2 3 1 Melee . | . . . . Uniques/NPCs Destroyed . | . . . . Combat | -11 -10 -10 -10 -------- Run | Yrd Mat Min Sub Hostile Shots Fired 66 | . 30 17 19 Missed 15 | . 8 2 5 Damage Taken 736 | . 207 239 290 Core 260 | . 94 64 102 Absorbed by Shields . | . . . . Core Remaining (%) 100 | 100 . . . Volleys Fired 103 | 7 59 20 17 Largest 2 | 1 2 2 2 Hottest 60 | 20 40 60 60 Shots Fired 130 | 7 64 26 33 Gun 80 | 7 55 18 . Cannon . | . . . . Launcher 50 | . 9 8 33 Special . | . . . . Kinetic 80 | 7 55 18 . Thermal . | . . . . Explosive 50 | . 9 8 33 Electromagnetic . | . . . . Robot Hit Streak 4 | 2 4 3 4 Robot Miss Streak 8 | 1 8 7 2 Penetration Max . | . . . . Secondary Targets . | . . . . Shots Hit Robots 55 | 4 25 12 14 Core Hits 55 | 2 28 14 11 Critical Kills . | . . . . Critical Parts Destroyed . | . . . . Critical Strikes . | . . . . Melee Attacks . | . . . . Impact . | . . . . Slashing . | . . . . Piercing . | . . . . Sneak Attacks . | . . . . Combat Hostiles . | . . . . Follow-up Attacks . | . . . . Damage Inflicted 2646 | 38 1041 510 1057 Guns 477 | 38 301 138 . Cannons . | . . . . Explosions 2169 | . 740 372 1057 Melee . | . . . . Ramming . | . . . . Kinetic 477 | 38 301 138 . Thermal . | . . . . Explosive 2134 | . 705 372 1057 Electromagnetic 35 | . 35 . . Impact . | . . . . Slashing . | . . . . Piercing . | . . . . Highest Corruption . | . . . . Average Corruption . | . . . . Corruption Purged . | . . . . Corruption Blocked . | . . . . Overload Shots . | . . . . Overflow Damage 50 | . 10 7 33 Projectiles . | . . . . Explosions 50 | . 10 7 33 Melee . | . . . . Knockbacks . | . . . . Impact . | . . . . Kinetic . | . . . . Secondary . | . . . . Self-Inflicted Damage 18 | . . 18 . Shots 1 | . . 1 . Rammed . | . . . . Targets Rammed . | . . . . Kicked . | . . . . Crushed . | . . . . Highest Temperature 12 | . 1 12 . Average Temperature 5 | . 1 6 . Received Heat Transfer 213 | . 36 129 48 Siege Activations . | . . . . Robots Corrupted . | . . . . Combat Hostiles . | . . . . Parts Fried . | . . . . Impact Corruptions . | . . . . Robots Melted . | . . . . Combat Hostiles . | . . . . Parts Melted . | . . . . Heat Transferred . | . . . . Parts Sabotaged . | . . . . Parts Stolen . | . . . . Parts Stripped . | . . . . Power Chain Reactions . | . . . . Alert | -11 -10 -10 -10 ------- Run | Yrd Mat Min Sub Peak Influence 425 | 5 425 235 . Initial 87 | . 3 87 . Average 236 | 1 303 192 . Maximum Alert Level 2 | . 2 1 . Low Security (%) 45 | 100 19 69 . Level 1 40 | . 53 30 . Level 2 14 | . 27 . . Level 3 . | . . . . Level 4 . | . . . . Level 5 . | . . . . High Security . | . . . . Max Security . | . . . . Squads Dispatched 2 | . 2 . . Investigation 1 | . 1 . . Extermination . | . . . . Reinforcement 1 | . 1 . . Assault . | . . . . Garrison . | . . . . Intercept . | . . . . Searches Triggered . | . . . . Construction Impeded . | . . . . Haulers Reinforced . | . . . . Active Scanning Responses . | . . . . Cargo Convoy Interrupts . | . . . . Stealth | -11 -10 -10 -10 --------- Run | Yrd Mat Min Sub Distress Signals 1 | . 1 . . Communications Jammed . | . . . . Distress Signals . | . . . . Times Spotted 30 | . 17 2 11 Peak Tracking Total 4 | . 4 2 2 Tactical Retreats 1 | . . 1 . Traps | -11 -10 -10 -10 ------- Run | Yrd Mat Min Sub Traps Triggered 1 | . 1 . . Indirectly . | . . . . Trap Hack Attempts . | . . . . Triggered . | . . . . Disarmed . | . . . . Reprogrammed . | . . . . Reused . | . . . . Traps Extracted . | . . . . Installed . | . . . . Triggered . | . . . . Machines | -11 -10 -10 -10 ---------- Run | Yrd Mat Min Sub Machines Disabled 4 | . 4 . . Max in Single Turn 2 | . 2 . . Machines Repaired . | . . . . Machines Dismantled . | . . . . Machines Sabotaged . | . . . . Overloaded Fab Kills . | . . . . Hacking | -11 -10 -10 -10 --------- Run | Yrd Mat Min Sub Machines Accessed 1 | . 1 . . Terminals 1 | . 1 . . Fabricators . | . . . . Repair Stations . | . . . . Recycling Units . | . . . . Scanalyzers . | . . . . Garrison Access . | . . . . Total Hacks 3 | . 3 . . Successful 3 | . 3 . . Failed . | . . . . Catastrophic . | . . . . Database Lockouts . | . . . . Manual . | . . . . Terminals 3 | . 3 . . Fabricators . | . . . . Repair Stations . | . . . . Recycling Units . | . . . . Scanalyzers . | . . . . Garrison Access . | . . . . Terminal Hacks 3 | . 3 . . Robot Analysis 1 | . 1 . . Alert Level 2 | . 2 . . Fabricator Hacks . | . . . . Repair Station Hacks . | . . . . Recycling Unit Hacks . | . . . . Scanalyzer . | . . . . Garrison Access Hacks . | . . . . Unauthorized Hacks . | . . . . Terminals . | . . . . Fabricators . | . . . . Repair Stations . | . . . . Recycling Units . | . . . . Scanalyzers . | . . . . Garrison Access . | . . . . Data Cores Recovered . | . . . . Used . | . . . . Hacking Detections . | . . . . Full Trace Events . | . . . . Feedback Events . | . . . . Feedback Blocked . | . . . . Robot Schematics Acquired . | . . . . Robots Built . | . . . . Authchips . | . . . . Time . | . . . . Total Robot Build Rating . | . . . . Part Schematics Acquired . | . . . . Parts Built . | . . . . Authchips . | . . . . Time . | . . . . Total Part Build Rating . | . . . . Parts Repaired . | . . . . Time . | . . . . Parts Recycled . | . . . . Recycled Matter . | . . . . Retrieved Matter . | . . . . Retrieved Components . | . . . . Parts Scanalyzed . | . . . . Part Schematics Acquired . | . . . . Parts Damaged . | . . . . Bothacking | -11 -10 -10 -10 ------------ Run | Yrd Mat Min Sub Used RIF Installer . | . . . . Robots Hacked . | . . . . Non-combat . | . . . . Combat . | . . . . Robot Hacks Applied . | . . . . Relay Couplers Released . | . . . . Fabnet Peak Effective % . | . . . . Robots Rewired . | . . . . Allies Hacked . | . . . . Hacks Repelled . | . . . . Allies | -11 -10 -10 -10 -------- Run | Yrd Mat Min Sub Total Allies 2 | . . 2 . Largest Group 2 | . . 2 1 Highest-Rated Group 59 | . . 59 28 Highest-Rated Ally 31 | . . 31 28 Total Orders . | . . . . Ally Attacks 10 | . . 10 . Total Damage 65 | . . 65 . Kills . | . . . . Allies Corrupted . | . . . . Allies Melted . | . . . . Intel | -11 -10 -10 -10 ------- Run | Yrd Mat Min Sub Robot Analysis Total 1 | . 1 . . Derelict Logs Recovered 1 | . . 1 . Drone Launches . | . . . . Drone Recoveries . | . . . . Exploration | -11 -10 -10 -10 ------------- Run | Yrd Mat Min Sub Turns Passed 1407 | 63 442 335 567 Spaces Moved 964 | 46 275 198 445 Core 19 | 19 . . . Treads . | . . . . Legs . | . . . . Wheels 945 | 27 275 198 445 Hover . | . . . . Flight . | . . . . Fastest Speed 50 | 50 100 115 115 Average Speed 111 | 79 109 115 115 Slowest Speed 130 | 100 115 130 115 Overloaded Moves . | . . . . Propulsion Burnouts . | . . . . Robots Hopped . | . . . . Cave-ins Triggered . | . . . . Exploration Rate (%) 29 | 4 48 38 27 Regions Visited 3 Branch Regions 2 Pre-discovered Areas . | . . . . Known Exits Taken . | . . . . Unknown Exits Taken 3 | 1 1 1 . Scrap Searched 1 | . . 1 . Spaces Dug 62 | . . 22 40 Terrain Destroyed 237 | . 31 70 136 Melee . | . . . . Projectile . | . . . . AOE 237 | . 31 70 136 Terrain Rammed . | . . . . Walls Destroyed . | . . . . Machines Disabled . | . . . . Actions | -11 -10 -10 -10 --------- Run | Yrd Mat Min Sub Total 1164 | 66 353 277 468 Wait 49 | . 1 48 . Move 961 | 45 274 197 445 Hop . | . . . . Pick Up 27 | 10 6 6 5 Fast Attach 1 | 1 . . . Attach 10 | 3 3 3 1 Detach . | . . . . Swap 8 | . 5 3 . Drop 5 | . 5 . . Fire 103 | 7 59 20 17 Melee . | . . . . Ram . | . . . . Kick . | . . . . Crush . | . . . . Escape Stasis . | . . . . Rewire . | . . . . Trap . | . . . . Miscellaneous . | . . . . Route ------- -11/Scrapyard -10/Materials (discovered 3 exits: [*Mat] / [*Min x2]) -10/Mines (discovered 2 exits: [*Mat] / [*Sub]) -10/Subcaves (discovered 1 exit: [*Mat]) History --------- Turn | Location | Event 6 | -11/Scrapyard | Discovered new exit (range 16) 64 | -11/Scrapyard | Entered Materials 151 | -10/Materials | Discovered new exit (range 10) 283 | -10/Materials | Discovered new exit (range 16) 316 | -10/Materials | Build established: Mutant 489 | -10/Materials | Discovered new exit (range 9) 506 | -10/Materials | Entered Mines 569 | -10/Mines | Learned Materials security intel 584 | -10/Mines | Discovered new exit (range 10) 649 | -10/Mines | Core integrity fell below 50% 706 | -10/Mines | Lost 3 parts (1n2w) 764 | -10/Mines | Discovered new exit (range 13) 841 | -10/Mines | Entered Subcaves 841 | -10/Subcaves | Accompanied by 1 ally 1045 | -10/Subcaves | Disturbed a concealed Subdweller 1071 | -10/Subcaves | Disturbed a concealed Subdweller 1077 | -10/Subcaves | Disturbed a concealed Subdweller 1259 | -10/Subcaves | Discovered new exit (range 6) 1323 | -10/Subcaves | Ambushed by Subdweller buried in earth 1323 | -10/Subcaves | Ambushed by Subdweller buried in earth 1325 | -10/Subcaves | Ambushed by angry Subdweller bent on revenge 1325 | -10/Subcaves | Core integrity fell below 20% 1399 | -10/Subcaves | Ambushed by Subdweller buried in earth 1408 | -10/Subcaves | Destroyed by 07-OUI(R) with Subdweller Laser Last Messages --------------- 01324_ 6R-QYS(R): "ARGHSUB!" 01326_ 6R-QYS(R) destroyed. 01329_ Destroyed Sub. Monowheel. 01329_ F7-BUT(R) destroyed. 01332_ The unstable cave ceiling collapses. 01334_ V0-L05(R): "OHNO!" 01334_ V0-L05(R) destroyed. 01337_ The unstable cave ceiling collapses. 01337_ Scrap Shield Fragment crushed. 01341_ The unstable cave ceiling collapses. 01343_ Acquired 33 matter. 01344_ The unstable cave ceiling collapses. 01356_ Acquired Sub. Machine Gun. 01361_ The unstable cave ceiling collapses. 01362_ Acquired Wheel. 01389_ The unstable cave ceiling collapses. 01395_ 8H-0QW(R) destroyed. 01399_ The unstable cave ceiling collapses. 01400_ 07-OUI(R): "NOSTUCKSUB!" 01404_ Mni. Grenade Launcher destroyed. Map ----- +----------------------------------------------------+ | ???????????????????????????????????????????? | | ???????????????????????????????????????????? | | ???????????????????????????????????????????? | | ????????????????#?????? ??????????????????? | | ?????????????????????? ??????????????????? | | ?????????????????????? ??????????????????? | | ????????????????????? ??????????????????? | | ?????????????????? "" ????????#???#?????? | | ???????????????????""" ???#??????????????? | | ???????????????????" ##????????????????? | | ?????????????????? ###??????????????? | | ????????????????? R ##?????????????? | | ?????????????????? #???#?????????? | | ?????????????????? # #?????????????? | | ??????????????????? #?????????#???? | | ?????????????????### #???#?????????? | | ?????????????????# #?????????????? | | ?????????????????# ????????????#?? | | ?????????????????# R #????????##????? | | ??????????????????# ##?????????????? | | ??????????????????? ###???????????#? | | ???????????????????## #????????????? | | ????????????????????### #????????????? | | ??????????????????????## # #??????????? | | ???????????????????????## # #?????????? | | ????????????????????###?#@ #??????#??? | | ???????????????#???## ?## ## ###?????????? | | ???????????????????# ### ####??????????? | | ??????????????????## ## #?????????????? | | ?"????????#???????# ## #???#?#??#????? | | ?"?????????????#??# #????????#????? | | ?????####????#???## #?????????????? | | ?" ?# ????????# ""#????????#????? | | ? ???? ####?#??# # ""###????????????? | | ?????## ?#?????# ## ##????????????? | | ##?###" ###??####" #???#?????????? | | ### " #### # ## ##???#????????? | | ? #" # # ###????#???????? | | #?????# ### & #????????????? | | ##????## ##????????????? | | ##???## ! " #?????????????? | | #???# & #?????#???????? | | #???# ##???????#?????? | | ##???# ### ##??????????????? | | ##????# ## ##?## ####????????#???#??? | | ##?#?## # ## ##?#?????????????? | | ##### # #????????????????? | | # # #????????????????? | | # ## ## # # ###????????????????? | | ## ############### ##??#???#???????????? | +----------------------------------------------------+ Best States ------------- Heat Dissipation 25 Energy Generation 18 Energy Capacity 250 Matter Stores 300 Matter Capacity 300 Sight Range 16 Terrain Scan Range 18 Terrain Scan Density 10 Evasion (%) 40 Item Schematics ----------------- None Robot Schematics ------------------ None Fabricated ------------ Nothing Alien Tech Used ----------------- None Achievements -------------- None Challenges ------------ None Game ------ Seed ReflectiveShrapnelPurifier Manual? 0 Play Time 00:17:43 Cumulative 60.9 hours Start 2024.03.24 @ 21:20:25 End 2024.03.24 @ 21:37:58 Sessions 1 Manual Loads 0 Difficulty Rogue Special Mode None Game No. 51 Rogue 49 Adventurer 0 Explorer 2 Win Type - Total 0 Types 0/0/0/0/0/0/0/0/0 Lore% 19 Gallery% 33 Achievement% 21 Wizard Run 0 Options --------- Layout 1 ASCII 0 Keyboard 0 Movement Mouse Keybinds 0 Fullscreen 2 Font 48/Tamsyn Map View 50x35 Zoom Use 0% Tactical HUD 1 Map Filters NONE Filters NONE Steam 1 RUN: bce1cafa-ad5d-4b1d-93f2-5ae0eba22827